[Event "Titled Tuesday Blitz July 13 2021"]
[White "Rustemov, Alexander"]
[Black "Yoo, Christopher Woojin"]
[WhiteFideId "4119002"]
[BlackFideId "30909694"]
[WhiteElo "2782"]
[BlackElo "2105"]
[Result "0-1"]
[Round "08"]
[TimeControl "180+1"]
[Date "2021.07.13"]
[WhiteClock "0:00:22"]
[BlackClock "0:00:03"]

1. d4 {[%clk 0:03:00]}  Nf6 {[%clk 0:02:59]} 2. c4 {[%clk 0:03:00]}  e6 {[%clk 0:02:58]} 3. Nf3 {[%clk 0:03:00]}  d5 {[%clk 0:02:57]} 4. cxd5 {[%clk 0:02:55]}  exd5 {[%clk 0:02:57]} 5. Nc3 {[%clk 0:02:54]}  Bb4 {[%clk 0:02:52]} 6. Bg5 {[%clk 0:02:52]}  h6 {[%clk 0:02:51]} 7. Bxf6 {[%clk 0:02:48]}  Qxf6 {[%clk 0:02:51]} 8. Qa4+ {[%clk 0:02:45]}  Nc6 {[%clk 0:02:51]} 9. e3 {[%clk 0:02:45]}  O-O {[%clk 0:02:50]} 10. Be2 {[%clk 0:02:45]}  a6 {[%clk 0:02:19]} 11. O-O {[%clk 0:02:45]}  Qd6 {[%clk 0:02:05]} 12. Rfc1 {[%clk 0:02:39]}  Bd7 {[%clk 0:01:53]} 13. Qb3 {[%clk 0:02:33]}  Ne7 {[%clk 0:01:47]} 14. a3 {[%clk 0:02:27]}  Ba5 {[%clk 0:01:47]} 15. Ne5 {[%clk 0:02:22]}  Be6 {[%clk 0:01:42]} 16. Na4 {[%clk 0:02:15]}  b6 {[%clk 0:01:22]} 17. Qc2 {[%clk 0:02:13]}  c5 {[%clk 0:01:22]} 18. Nf3 {[%clk 0:01:56]}  c4 {[%clk 0:01:16]} 19. b4 {[%clk 0:01:56]}  cxb3 {[%clk 0:01:14]} 20. Qxb3 {[%clk 0:01:57]}  Rfc8 {[%clk 0:00:52]} 21. h3 {[%clk 0:01:53]}  Rxc1+ {[%clk 0:00:47]} 22. Rxc1 {[%clk 0:01:52]}  Rc8 {[%clk 0:00:47]} 23. Rb1 {[%clk 0:01:48]}  b5 {[%clk 0:00:44]} 24. Nc5 {[%clk 0:01:48]}  Bf5 {[%clk 0:00:40]} 25. Bd3 {[%clk 0:01:40]}  Bxd3 {[%clk 0:00:29]} 26. Qxd3 {[%clk 0:01:41]}  Ra8 {[%clk 0:00:24]} 27. a4 {[%clk 0:01:26]}  bxa4 {[%clk 0:00:23]} 28. Nxa4 {[%clk 0:01:25]}  Bb4 {[%clk 0:00:21]} 29. Ne5 {[%clk 0:01:18]}  a5 {[%clk 0:00:21]} 30. Qb3 {[%clk 0:01:16]}  Rc8 {[%clk 0:00:19]} 31. Nd3 {[%clk 0:01:16]}  Rc4 {[%clk 0:00:18]} 32. Nac5 {[%clk 0:01:09]}  Nc6 {[%clk 0:00:13]} 33. g3 {[%clk 0:00:59]}  h5 {[%clk 0:00:13]} 34. h4 {[%clk 0:00:59]}  g6 {[%clk 0:00:13]} 35. Kg2 {[%clk 0:00:59]}  Rc3 {[%clk 0:00:11]} 36. Qa4 {[%clk 0:00:58]}  Rc4 {[%clk 0:00:10]} 37. Qb5 {[%clk 0:00:57]}  Kg7 {[%clk 0:00:08]} 38. Qb7 {[%clk 0:00:55]}  Nd8 {[%clk 0:00:03]} 39. Qc8 {[%clk 0:00:52]}  Ne6 {[%clk 0:00:03]} 40. Nxe6+ {[%clk 0:00:44]}  Qxe6 {[%clk 0:00:04]} 41. Qxe6 {[%clk 0:00:43]}  fxe6 {[%clk 0:00:05]} 42. Kf3 {[%clk 0:00:28]}  Kf6 {[%clk 0:00:05]} 43. Rb2 {[%clk 0:00:28]}  Kf5 {[%clk 0:00:04]} 44. Nxb4 {[%clk 0:00:23]}  Rxb4 {[%clk 0:00:03]} 45. Rc2 {[%clk 0:00:22]}  a4 {[%clk 0:00:03]} 46. Rc8 {[%clk 0:00:23]}  Kf6 {[%clk 0:00:03]} 47. Rf8+ {[%clk 0:00:22]}  Kg7 {[%clk 0:00:03]} 48. Ra8 {[%clk 0:00:22]}  Rc4 {[%clk 0:00:03]} 49. Kf4 {[%clk 0:00:22]}  Kf6 {[%clk 0:00:03]} 50. f3 {[%clk 0:00:22]}  e5# {[%clk 0:00:03]} 0-1


[Site "https://www.chess.com"]

[Event "Titled Tuesday Blitz July 13 2021"]
[White "Sellitti, Federico"]
[Black "Gogolev, Artem"]
[WhiteFideId "821829"]
[BlackFideId "4116615"]
[WhiteElo "2601"]
[BlackElo "2191"]
[Result "0-1"]
[Round "08"]
[TimeControl "180+1"]
[Date "2021.07.13"]
[WhiteClock "0:00:16"]
[BlackClock "0:00:13"]

1. e4 {[%clk 0:03:00]}  c6 {[%clk 0:02:06]} 2. d4 {[%clk 0:02:59]}  d5 {[%clk 0:02:06]} 3. exd5 {[%clk 0:03:00]}  cxd5 {[%clk 0:02:06]} 4. Bd3 {[%clk 0:03:01]}  Nc6 {[%clk 0:02:05]} 5. Nf3 {[%clk 0:03:01]}  Bg4 {[%clk 0:01:58]} 6. c3 {[%clk 0:03:02]}  e6 {[%clk 0:01:54]} 7. Bf4 {[%clk 0:03:01]}  Bd6 {[%clk 0:01:52]} 8. Bxd6 {[%clk 0:03:01]}  Qxd6 {[%clk 0:01:53]} 9. Nbd2 {[%clk 0:03:01]}  Nf6 {[%clk 0:01:48]} 10. O-O {[%clk 0:03:01]}  O-O {[%clk 0:01:48]} 11. Qe1 {[%clk 0:03:02]}  Bxf3 {[%clk 0:01:37]} 12. Nxf3 {[%clk 0:03:03]}  Rab8 {[%clk 0:01:34]} 13. Ne5 {[%clk 0:03:01]}  b5 {[%clk 0:01:33]} 14. f4 {[%clk 0:03:01]}  b4 {[%clk 0:01:32]} 15. Qh4 {[%clk 0:02:52]}  bxc3 {[%clk 0:01:05]} 16. bxc3 {[%clk 0:02:53]}  Ne4 {[%clk 0:01:00]} 17. Rf3 {[%clk 0:02:29]}  Ne7 {[%clk 0:00:48]} 18. Rh3 {[%clk 0:01:54]}  h6 {[%clk 0:00:47]} 19. g4 {[%clk 0:01:43]}  Ng6 {[%clk 0:00:45]} 20. Nxg6 {[%clk 0:01:20]}  fxg6 {[%clk 0:00:45]} 21. Bxe4 {[%clk 0:00:55]}  dxe4 {[%clk 0:00:35]} 22. Qf2 {[%clk 0:00:39]}  Rxf4 {[%clk 0:00:34]} 23. Qe2 {[%clk 0:00:37]}  Rbf8 {[%clk 0:00:28]} 24. Re3 {[%clk 0:00:35]}  Rf2 {[%clk 0:00:16]} 25. Qxf2 {[%clk 0:00:17]}  Rxf2 {[%clk 0:00:17]} 26. Kxf2 {[%clk 0:00:18]}  Qxh2+ {[%clk 0:00:17]} 27. Ke1 {[%clk 0:00:19]}  Qg1+ {[%clk 0:00:16]} 28. Kd2 {[%clk 0:00:20]}  Qxa1 {[%clk 0:00:16]} 29. Rxe4 {[%clk 0:00:21]}  Qxa2+ {[%clk 0:00:16]} 30. Kd3 {[%clk 0:00:22]}  Qb1+ {[%clk 0:00:16]} 31. Ke3 {[%clk 0:00:22]}  a5 {[%clk 0:00:15]} 32. Re5 {[%clk 0:00:21]}  a4 {[%clk 0:00:15]} 33. Ra5 {[%clk 0:00:17]}  Qb3 {[%clk 0:00:15]} 34. Kd3 {[%clk 0:00:16]}  a3 {[%clk 0:00:15]} 35. Ra8+ {[%clk 0:00:17]}  Kh7 {[%clk 0:00:15]} 36. g5 {[%clk 0:00:16]}  a2 {[%clk 0:00:13]} 0-1


[Site "https://www.chess.com"]

[Event "Titled Tuesday Blitz July 13 2021"]
[White "Seul, Georg"]
[Black "Makhmudov, Shukhrat"]
[WhiteFideId "4601653"]
[BlackFideId "14200775"]
[WhiteElo "2332"]
[BlackElo "2135"]
[Result "0-1"]
[Round "08"]
[TimeControl "180+1"]
[Date "2021.07.13"]
[WhiteClock "0:01:40"]
[BlackClock "0:01:58"]

1. e4 {[%clk 0:03:00]}  e5 {[%clk 0:03:00]} 2. Nc3 {[%clk 0:02:59]}  Nc6 {[%clk 0:03:00]} 3. Bc4 {[%clk 0:02:58]}  Nf6 {[%clk 0:03:00]} 4. d3 {[%clk 0:02:58]}  Bb4 {[%clk 0:02:59]} 5. Ne2 {[%clk 0:02:58]}  d5 {[%clk 0:02:59]} 6. exd5 {[%clk 0:02:58]}  Nxd5 {[%clk 0:02:59]} 7. O-O {[%clk 0:02:58]}  Be6 {[%clk 0:02:58]} 8. Bxd5 {[%clk 0:02:57]}  Bxd5 {[%clk 0:02:58]} 9. f4 {[%clk 0:02:57]}  O-O {[%clk 0:02:53]} 10. f5 {[%clk 0:02:55]}  f6 {[%clk 0:02:51]} 11. Nxd5 {[%clk 0:02:52]}  Qxd5 {[%clk 0:02:51]} 12. Ng3 {[%clk 0:02:53]}  Rfd8 {[%clk 0:02:42]} 13. Ne4 {[%clk 0:02:41]}  Be7 {[%clk 0:02:25]} 14. Be3 {[%clk 0:02:38]}  Nd4 {[%clk 0:02:23]} 15. Kh1 {[%clk 0:02:33]}  Qd7 {[%clk 0:02:20]} 16. g4 {[%clk 0:02:14]}  Qc6 {[%clk 0:02:17]} 17. c3 {[%clk 0:02:00]}  Nb5 {[%clk 0:02:11]} 18. Qb3+ {[%clk 0:01:43]}  Kh8 {[%clk 0:02:03]} 19. Rad1 {[%clk 0:01:40]}  Rxd3 {[%clk 0:01:58]} 0-1


[Site "https://www.chess.com"]

[Event "Titled Tuesday Blitz July 13 2021"]
[White "Shevelev, Dmitri"]
[Black "Weetik, Vjacheslav"]
[WhiteFideId "2802627"]
[BlackFideId "4153472"]
[WhiteElo "2262"]
[BlackElo "2469"]
[Result "1/2-1/2"]
[Round "08"]
[TimeControl "180+1"]
[Date "2021.07.13"]
[WhiteClock "0:00:48"]
[BlackClock "0:00:05"]

1. d4 {[%clk 0:03:00]}  d5 {[%clk 0:02:56]} 2. Nf3 {[%clk 0:03:01]}  e6 {[%clk 0:02:56]} 3. Nc3 {[%clk 0:03:01]}  Nf6 {[%clk 0:02:54]} 4. Bg5 {[%clk 0:03:01]}  Be7 {[%clk 0:02:51]} 5. Bxf6 {[%clk 0:03:01]}  gxf6 {[%clk 0:02:49]} 6. e4 {[%clk 0:03:02]}  dxe4 {[%clk 0:02:48]} 7. Nxe4 {[%clk 0:03:03]}  f5 {[%clk 0:02:49]} 8. Ng3 {[%clk 0:03:03]}  c5 {[%clk 0:02:49]} 9. Bb5+ {[%clk 0:02:42]}  Nc6 {[%clk 0:02:46]} 10. Qd2 {[%clk 0:02:16]}  Qb6 {[%clk 0:02:40]} 11. Bxc6+ {[%clk 0:02:03]}  bxc6 {[%clk 0:02:23]} 12. O-O-O {[%clk 0:01:54]}  Rb8 {[%clk 0:02:17]} 13. c3 {[%clk 0:01:53]}  O-O {[%clk 0:01:50]} 14. dxc5 {[%clk 0:01:36]}  Qxc5 {[%clk 0:01:44]} 15. Rhe1 {[%clk 0:01:18]}  Rd8 {[%clk 0:01:02]} 16. Qh6 {[%clk 0:01:08]}  Qxc3+ {[%clk 0:00:52]} 17. bxc3 {[%clk 0:01:03]}  Ba3+ {[%clk 0:00:50]} 18. Kc2 {[%clk 0:01:02]}  Rb2+ {[%clk 0:00:50]} 19. Kc1 {[%clk 0:01:02]}  Rb5+ {[%clk 0:00:17]} 20. Kc2 {[%clk 0:00:58]}  Rb2+ {[%clk 0:00:16]} 21. Kc1 {[%clk 0:00:58]}  Rb3+ {[%clk 0:00:06]} 22. Kc2 {[%clk 0:00:48]}  Rb2+ {[%clk 0:00:05]} 1/2-1/2


[Site "https://www.chess.com"]

[Event "Titled Tuesday Blitz July 13 2021"]
[White "Sonis, Francesco"]
[Black "Pajeken, Jakob Leon"]
[WhiteFideId "895733"]
[BlackFideId "12942839"]
[WhiteElo "2373"]
[BlackElo "2231"]
[Result "1-0"]
[Round "08"]
[TimeControl "180+1"]
[Date "2021.07.13"]
[WhiteClock "0:00:21"]
[BlackClock "0:00:58"]

1. d4 {[%clk 0:02:58]}  d5 {[%clk 0:02:58]} 2. c4 {[%clk 0:02:58]}  dxc4 {[%clk 0:02:59]} 3. Nf3 {[%clk 0:02:54]}  a6 {[%clk 0:02:57]} 4. a4 {[%clk 0:02:42]}  Nc6 {[%clk 0:02:56]} 5. e3 {[%clk 0:02:41]}  Bg4 {[%clk 0:02:54]} 6. Bxc4 {[%clk 0:02:39]}  e6 {[%clk 0:02:53]} 7. O-O {[%clk 0:02:34]}  Nf6 {[%clk 0:02:52]} 8. a5 {[%clk 0:02:33]}  Bd6 {[%clk 0:02:51]} 9. Nbd2 {[%clk 0:02:28]}  e5 {[%clk 0:02:48]} 10. dxe5 {[%clk 0:02:27]}  Nxe5 {[%clk 0:02:47]} 11. Qa4+ {[%clk 0:02:19]}  Bd7 {[%clk 0:02:41]} 12. Qb3 {[%clk 0:02:10]}  O-O {[%clk 0:02:34]} 13. Nxe5 {[%clk 0:02:08]}  Bxe5 {[%clk 0:02:32]} 14. Nf3 {[%clk 0:02:09]}  Bd6 {[%clk 0:02:29]} 15. Bd2 {[%clk 0:02:05]}  Ne4 {[%clk 0:02:26]} 16. Bb4 {[%clk 0:02:05]}  c5 {[%clk 0:02:24]} 17. Bc3 {[%clk 0:02:02]}  Nxc3 {[%clk 0:02:24]} 18. bxc3 {[%clk 0:02:01]}  Bc6 {[%clk 0:02:24]} 19. Rfd1 {[%clk 0:01:31]}  Bxf3 {[%clk 0:02:18]} 20. gxf3 {[%clk 0:01:31]}  Qf6 {[%clk 0:02:18]} 21. f4 {[%clk 0:01:26]}  Rad8 {[%clk 0:02:12]} 22. Bd5 {[%clk 0:01:24]}  Qg6+ {[%clk 0:02:05]} 23. Kh1 {[%clk 0:01:23]}  Rd7 {[%clk 0:02:01]} 24. c4 {[%clk 0:01:19]}  Rfd8 {[%clk 0:01:56]} 25. Qb2 {[%clk 0:01:15]}  Be7 {[%clk 0:01:53]} 26. Rg1 {[%clk 0:01:09]}  Qh6 {[%clk 0:01:49]} 27. Rad1 {[%clk 0:01:02]}  Bf6 {[%clk 0:01:48]} 28. Qb6 {[%clk 0:01:00]}  Qh4 {[%clk 0:01:43]} 29. Rg3 {[%clk 0:00:58]}  g6 {[%clk 0:01:40]} 30. Rdg1 {[%clk 0:00:55]}  Kg7 {[%clk 0:01:39]} 31. Qxc5 {[%clk 0:00:49]}  Qh5 {[%clk 0:01:35]} 32. Qb6 {[%clk 0:00:46]}  Re8 {[%clk 0:01:27]} 33. e4 {[%clk 0:00:40]}  Bd8 {[%clk 0:01:25]} 34. Qb2+ {[%clk 0:00:39]}  Kg8 {[%clk 0:01:22]} 35. f5 {[%clk 0:00:36]}  g5 {[%clk 0:01:21]} 36. f6 {[%clk 0:00:35]}  h6 {[%clk 0:01:19]} 37. f4 {[%clk 0:00:34]}  Kh7 {[%clk 0:01:11]} 38. e5 {[%clk 0:00:28]}  Qg6 {[%clk 0:01:08]} 39. fxg5 {[%clk 0:00:27]}  h5 {[%clk 0:01:07]} 40. Re3 {[%clk 0:00:21]}  Rxd5 {[%clk 0:00:56]} 41. cxd5 {[%clk 0:00:21]}  Bxa5 {[%clk 0:00:55]} 42. Qb1 {[%clk 0:00:20]}  Bd2 {[%clk 0:00:53]} 43. Re2 {[%clk 0:00:19]}  Bf4 {[%clk 0:00:52]} 44. e6 {[%clk 0:00:19]}  Bxg5 {[%clk 0:00:50]} 45. Qxg6+ {[%clk 0:00:18]}  Kxg6 {[%clk 0:00:49]} 46. h4 {[%clk 0:00:18]}  fxe6 {[%clk 0:00:48]} 47. Rxg5+ {[%clk 0:00:17]}  Kxf6 {[%clk 0:00:48]} 48. dxe6 {[%clk 0:00:18]}  Rxe6 {[%clk 0:00:48]} 49. Rxe6+ {[%clk 0:00:18]}  Kxe6 {[%clk 0:00:49]} 50. Rxh5 {[%clk 0:00:19]}  b5 {[%clk 0:00:50]} 51. Rh6+ {[%clk 0:00:19]}  Kf5 {[%clk 0:00:51]} 52. Rxa6 {[%clk 0:00:19]}  Kg4 {[%clk 0:00:52]} 53. Rb6 {[%clk 0:00:19]}  Kh5 {[%clk 0:00:53]} 54. Rxb5+ {[%clk 0:00:19]}  Kxh4 {[%clk 0:00:54]} 55. Rb2 {[%clk 0:00:20]}  Kh3 {[%clk 0:00:54]} 56. Rg2 {[%clk 0:00:19]}  Kh4 {[%clk 0:00:54]} 57. Kg1 {[%clk 0:00:20]}  Kh3 {[%clk 0:00:55]} 58. Kf2 {[%clk 0:00:21]}  Kh4 {[%clk 0:00:56]} 59. Kf3 {[%clk 0:00:22]}  Kh3 {[%clk 0:00:57]} 60. Rg4 {[%clk 0:00:20]}  Kh2 {[%clk 0:00:57]} 61. Kf2 {[%clk 0:00:20]}  Kh3 {[%clk 0:00:58]} 62. Rb4 {[%clk 0:00:20]}  Kh2 {[%clk 0:00:58]} 63. Rh4# {[%clk 0:00:21]} 1-0


[Site "https://www.chess.com"]

[Event "Titled Tuesday Blitz July 13 2021"]
[White "Svane, Frederik"]
[Black "Siniauski, Artsiom"]
[WhiteFideId "12923044"]
[BlackFideId "13512269"]
[WhiteElo "2459"]
[BlackElo "2210"]
[Result "1-0"]
[Round "08"]
[TimeControl "180+1"]
[Date "2021.07.13"]
[WhiteClock "0:00:08"]
[BlackClock "0:00:03"]

1. e4 {[%clk 0:03:00]}  e6 {[%clk 0:02:59]} 2. d4 {[%clk 0:03:00]}  d5 {[%clk 0:02:59]} 3. Nd2 {[%clk 0:03:01]}  c5 {[%clk 0:02:59]} 4. exd5 {[%clk 0:03:00]}  Qxd5 {[%clk 0:02:59]} 5. Ngf3 {[%clk 0:02:57]}  cxd4 {[%clk 0:02:59]} 6. Bc4 {[%clk 0:02:55]}  Qd8 {[%clk 0:02:59]} 7. O-O {[%clk 0:02:52]}  Nc6 {[%clk 0:02:59]} 8. Nb3 {[%clk 0:02:49]}  a6 {[%clk 0:02:59]} 9. Nbxd4 {[%clk 0:02:43]}  Nxd4 {[%clk 0:03:00]} 10. Nxd4 {[%clk 0:02:44]}  Bd6 {[%clk 0:02:58]} 11. Bd3 {[%clk 0:02:17]}  Ne7 {[%clk 0:02:56]} 12. Re1 {[%clk 0:02:10]}  O-O {[%clk 0:02:55]} 13. Qh5 {[%clk 0:02:06]}  Ng6 {[%clk 0:02:52]} 14. Nf3 {[%clk 0:02:05]}  Bd7 {[%clk 0:02:11]} 15. Ng5 {[%clk 0:01:50]}  h6 {[%clk 0:01:58]} 16. Nxf7 {[%clk 0:01:50]}  Rxf7 {[%clk 0:01:58]} 17. Bxg6 {[%clk 0:01:45]}  Rf6 {[%clk 0:01:54]} 18. Bg5 {[%clk 0:01:39]}  Qf8 {[%clk 0:01:14]} 19. Bxf6 {[%clk 0:01:38]}  Qxf6 {[%clk 0:01:15]} 20. Rad1 {[%clk 0:01:35]}  Rf8 {[%clk 0:01:11]} 21. Rd2 {[%clk 0:01:13]}  Bc6 {[%clk 0:01:00]} 22. c3 {[%clk 0:01:07]}  Bf4 {[%clk 0:00:57]} 23. Rde2 {[%clk 0:01:04]}  e5 {[%clk 0:00:57]} 24. Be4 {[%clk 0:00:56]}  Bxe4 {[%clk 0:00:40]} 25. Rxe4 {[%clk 0:00:57]}  Be3 {[%clk 0:00:37]} 26. Rf1 {[%clk 0:00:29]}  Bxf2+ {[%clk 0:00:36]} 27. Kh1 {[%clk 0:00:29]}  Qb6 {[%clk 0:00:23]} 28. Qe2 {[%clk 0:00:26]}  Bc5 {[%clk 0:00:22]} 29. Rxf8+ {[%clk 0:00:25]}  Bxf8 {[%clk 0:00:22]} 30. Rxe5 {[%clk 0:00:26]}  Qd6 {[%clk 0:00:22]} 31. Re8 {[%clk 0:00:24]}  Kf7 {[%clk 0:00:16]} 32. h3 {[%clk 0:00:19]}  b5 {[%clk 0:00:15]} 33. Re4 {[%clk 0:00:16]}  Kg8 {[%clk 0:00:11]} 34. Re8 {[%clk 0:00:14]}  Kf7 {[%clk 0:00:11]} 35. Rc8 {[%clk 0:00:09]}  Be7 {[%clk 0:00:11]} 36. Qf3+ {[%clk 0:00:10]}  Bf6 {[%clk 0:00:10]} 37. Rc6 {[%clk 0:00:06]}  Qe5 {[%clk 0:00:07]} 38. Qf1 {[%clk 0:00:04]}  a5 {[%clk 0:00:07]} 39. Rb6 {[%clk 0:00:04]}  Kg8 {[%clk 0:00:04]} 40. Rxb5 {[%clk 0:00:04]}  Qg3 {[%clk 0:00:03]} 41. Rxa5 {[%clk 0:00:03]}  Be5 {[%clk 0:00:01]} 42. Rxe5 {[%clk 0:00:04]}  Qxe5 {[%clk 0:00:01]} 43. a4 {[%clk 0:00:04]}  Kh8 {[%clk 0:00:01]} 44. Qa1 {[%clk 0:00:04]}  Qa5 {[%clk 0:00:01]} 45. b4 {[%clk 0:00:05]}  Qa8 {[%clk 0:00:02]} 46. a5 {[%clk 0:00:05]}  Kh7 {[%clk 0:00:03]} 47. a6 {[%clk 0:00:05]}  Kg6 {[%clk 0:00:03]} 48. a7 {[%clk 0:00:06]}  Kh5 {[%clk 0:00:03]} 49. b5 {[%clk 0:00:06]}  Kh4 {[%clk 0:00:03]} 50. b6 {[%clk 0:00:07]}  Kg3 {[%clk 0:00:03]} 51. Qe1+ {[%clk 0:00:07]}  Kf4 {[%clk 0:00:03]} 52. Qf2+ {[%clk 0:00:08]}  Kg5 {[%clk 0:00:03]} 53. Qg3+ {[%clk 0:00:07]}  Kh5 {[%clk 0:00:03]} 54. Qg4# {[%clk 0:00:08]} 1-0


[Site "https://www.chess.com"]

[Event "Titled Tuesday Blitz July 13 2021"]
[White "Taichman, Ori"]
[Black "Vivas Zamora, Fabian Ernesto"]
[WhiteFideId "2804069"]
[BlackFideId "3902480"]
[WhiteElo "2227"]
[BlackElo "1966"]
[Result "1-0"]
[Round "08"]
[TimeControl "180+1"]
[Date "2021.07.13"]
[WhiteClock "0:00:13"]
[BlackClock "0:00:02"]

1. e4 {[%clk 0:03:00]}  e5 {[%clk 0:02:59]} 2. d4 {[%clk 0:03:00]}  exd4 {[%clk 0:03:00]} 3. Qxd4 {[%clk 0:03:00]}  Nc6 {[%clk 0:03:00]} 4. Qe3 {[%clk 0:03:00]}  Nf6 {[%clk 0:03:00]} 5. Nc3 {[%clk 0:03:00]}  Be7 {[%clk 0:03:00]} 6. Bc4 {[%clk 0:02:59]}  O-O {[%clk 0:02:45]} 7. Bd2 {[%clk 0:02:58]}  Ne5 {[%clk 0:02:29]} 8. Bb3 {[%clk 0:02:58]}  Neg4 {[%clk 0:02:24]} 9. Qe2 {[%clk 0:02:57]}  Bc5 {[%clk 0:02:20]} 10. Nh3 {[%clk 0:02:57]}  d5 {[%clk 0:02:11]} 11. f3 {[%clk 0:02:28]}  dxe4 {[%clk 0:01:36]} 12. fxg4 {[%clk 0:02:19]}  Bxg4 {[%clk 0:01:36]} 13. Qc4 {[%clk 0:02:18]}  e3 {[%clk 0:01:33]} 14. Bc1 {[%clk 0:01:40]}  Bd4 {[%clk 0:01:15]} 15. Ne2 {[%clk 0:01:19]}  c5 {[%clk 0:00:59]} 16. Ng5 {[%clk 0:01:15]}  b5 {[%clk 0:00:36]} 17. Qxb5 {[%clk 0:01:10]}  Nd5 {[%clk 0:00:21]} 18. Nxd4 {[%clk 0:00:56]}  Qxg5 {[%clk 0:00:14]} 19. Qxc5 {[%clk 0:00:34]}  Rad8 {[%clk 0:00:02]} 20. O-O {[%clk 0:00:20]}  Bh3 {[%clk 0:00:02]} 21. Bxd5 {[%clk 0:00:13]} 1-0


[Site "https://www.chess.com"]

[Event "Titled Tuesday Blitz July 13 2021"]
[White "Timofeev, Artyom"]
[Black "Dowgird, Filip"]
[WhiteFideId "4140419"]
[BlackFideId "1121235"]
[WhiteElo "2582"]
[BlackElo "2209"]
[Result "1-0"]
[Round "08"]
[TimeControl "180+1"]
[Date "2021.07.13"]
[WhiteClock "0:00:56"]
[BlackClock "0:00:08"]

1. c4 {[%clk 0:03:00]}  e5 {[%clk 0:03:00]} 2. e3 {[%clk 0:03:01]}  Nf6 {[%clk 0:02:59]} 3. Nc3 {[%clk 0:03:00]}  Bb4 {[%clk 0:02:59]} 4. Nge2 {[%clk 0:03:00]}  O-O {[%clk 0:02:57]} 5. a3 {[%clk 0:03:00]}  Bd6 {[%clk 0:02:54]} 6. Ng3 {[%clk 0:02:55]}  c6 {[%clk 0:02:53]} 7. d4 {[%clk 0:02:50]}  Bc7 {[%clk 0:02:46]} 8. d5 {[%clk 0:02:48]}  d6 {[%clk 0:02:42]} 9. e4 {[%clk 0:02:48]}  a5 {[%clk 0:02:36]} 10. Be2 {[%clk 0:02:44]}  Na6 {[%clk 0:02:31]} 11. O-O {[%clk 0:02:44]}  Ne8 {[%clk 0:02:18]} 12. Kh1 {[%clk 0:02:40]}  g6 {[%clk 0:02:18]} 13. f4 {[%clk 0:02:39]}  exf4 {[%clk 0:02:14]} 14. Bxf4 {[%clk 0:02:39]}  Ng7 {[%clk 0:02:12]} 15. Qd2 {[%clk 0:02:36]}  Nc5 {[%clk 0:02:11]} 16. Rae1 {[%clk 0:02:35]}  a4 {[%clk 0:02:10]} 17. Bh6 {[%clk 0:02:23]}  Qe7 {[%clk 0:02:05]} 18. e5 {[%clk 0:02:06]}  dxe5 {[%clk 0:02:02]} 19. Nce4 {[%clk 0:02:03]}  Nxe4 {[%clk 0:01:49]} 20. Nxe4 {[%clk 0:02:03]}  Ba5 {[%clk 0:01:33]} 21. d6 {[%clk 0:01:41]}  Qh4 {[%clk 0:01:30]} 22. Nc3 {[%clk 0:01:34]}  Qd4 {[%clk 0:01:09]} 23. Rd1 {[%clk 0:01:27]}  Qxd2 {[%clk 0:01:04]} 24. Rxd2 {[%clk 0:01:27]}  Be6 {[%clk 0:01:00]} 25. c5 {[%clk 0:01:27]}  Rfd8 {[%clk 0:00:56]} 26. Rc2 {[%clk 0:01:24]}  Bxc3 {[%clk 0:00:37]} 27. Rxc3 {[%clk 0:01:23]}  f5 {[%clk 0:00:36]} 28. Bg5 {[%clk 0:01:16]}  Rd7 {[%clk 0:00:34]} 29. g3 {[%clk 0:01:05]}  Bd5+ {[%clk 0:00:34]} 30. Kg1 {[%clk 0:01:05]}  Ne6 {[%clk 0:00:30]} 31. Bf6 {[%clk 0:01:05]}  Nd4 {[%clk 0:00:30]} 32. Bd1 {[%clk 0:01:04]}  Re8 {[%clk 0:00:24]} 33. Re1 {[%clk 0:01:04]}  Nb5 {[%clk 0:00:21]} 34. Rd3 {[%clk 0:00:59]}  e4 {[%clk 0:00:19]} 35. Rxd5 {[%clk 0:00:59]}  cxd5 {[%clk 0:00:17]} 36. Bxa4 {[%clk 0:00:58]}  Rf7 {[%clk 0:00:09]} 37. Bxb5 {[%clk 0:00:58]}  Rc8 {[%clk 0:00:08]} 38. Bd4 {[%clk 0:00:57]}  b6 {[%clk 0:00:08]} 39. c6 {[%clk 0:00:56]} 1-0


[Site "https://www.chess.com"]

[Event "Titled Tuesday Blitz July 13 2021"]
[White "Tologon tegin, Semetei"]
[Black "Cunha, Lucas Aguiar"]
[WhiteFideId "13800574"]
[BlackFideId "2125404"]
[WhiteElo "2224"]
[BlackElo "2361"]
[Result "1-0"]
[Round "08"]
[TimeControl "180+1"]
[Date "2021.07.13"]
[WhiteClock "0:01:29"]
[BlackClock "0:00:01"]

1. d4 {[%clk 0:03:00]}  Nf6 {[%clk 0:02:59]} 2. c4 {[%clk 0:02:58]}  e6 {[%clk 0:02:59]} 3. Nc3 {[%clk 0:02:58]}  Bb4 {[%clk 0:03:00]} 4. e3 {[%clk 0:02:58]}  O-O {[%clk 0:03:00]} 5. Ne2 {[%clk 0:02:57]}  Re8 {[%clk 0:03:00]} 6. a3 {[%clk 0:02:57]}  Bf8 {[%clk 0:03:00]} 7. Ng3 {[%clk 0:02:56]}  e5 {[%clk 0:02:59]} 8. dxe5 {[%clk 0:02:47]}  Rxe5 {[%clk 0:03:00]} 9. Bd3 {[%clk 0:02:47]}  Nc6 {[%clk 0:01:22]} 10. O-O {[%clk 0:02:47]}  d5 {[%clk 0:01:21]} 11. f4 {[%clk 0:02:24]}  Bg4 {[%clk 0:01:00]} 12. Qd2 {[%clk 0:02:22]}  Rxe3 {[%clk 0:00:32]} 13. Qxe3 {[%clk 0:02:13]}  d4 {[%clk 0:00:32]} 14. Qd2 {[%clk 0:02:08]}  dxc3 {[%clk 0:00:32]} 15. Qxc3 {[%clk 0:02:09]}  Bc5+ {[%clk 0:00:30]} 16. Kh1 {[%clk 0:02:09]}  a5 {[%clk 0:00:30]} 17. h3 {[%clk 0:01:59]}  Bd4 {[%clk 0:00:19]} 18. Qc2 {[%clk 0:01:59]}  Bc8 {[%clk 0:00:19]} 19. Bd2 {[%clk 0:01:55]}  Ng4 {[%clk 0:00:18]} 20. Bxh7+ {[%clk 0:01:47]}  Kh8 {[%clk 0:00:17]} 21. Bf5 {[%clk 0:01:47]}  Qh4 {[%clk 0:00:16]} 22. Bxg4 {[%clk 0:01:46]}  Bxg4 {[%clk 0:00:16]} 23. Nf5 {[%clk 0:01:44]}  Qh7 {[%clk 0:00:14]} 24. Nxd4 {[%clk 0:01:43]}  f5 {[%clk 0:00:10]} 25. Bc3 {[%clk 0:01:38]}  Ne7 {[%clk 0:00:06]} 26. Rae1 {[%clk 0:01:36]}  Ng6 {[%clk 0:00:06]} 27. Ne6 {[%clk 0:01:33]}  Nh4 {[%clk 0:00:04]} 28. Kg1 {[%clk 0:01:30]}  Qg6 {[%clk 0:00:01]} 29. hxg4 {[%clk 0:01:29]} 1-0


[Site "https://www.chess.com"]